[Event "FIDE WCCC G10 2018"]
[Site "Santiago de Compostela"]
[Date "2018.11.13"]
[Round "9"]
[White "Stoll, Lucia"]
[Black "Khamdamova, Afruza"]
[Result "0-1"]
[ECO "C42"]
[WhiteElo "1369"]
[BlackElo "1691"]
[Annotator "NA RC"]
[PlyCount "122"]
[EventDate "2018.11.04"]
[EventType "swiss"]
[EventCountry "ESP"]
[SourceTitle "playchess.com"]
[Source "ChessBase"]
[SourceQuality "1"]
[TimeControl "40/5400+30:1800+30"]

1. e4 {[%emt 0:00:00]} e5 {[%emt 0:00:00]} 2. Nf3 {[%emt 0:00:00]} Nf6 {[%emt 0:00:00]} 3. Nxe5 {[%emt 0:00:24]} d6 {[%emt 0:00:00]} 4. Nf3 {[%emt 0:00:42]} Nxe4 {[%emt 0:02:58]} 5. Nc3 {[%emt 0:00:50]} Nxc3 {[%emt 0:00:06]} 6. dxc3 {[%emt 0:00:48]} d5 {[%emt 0:01:05]} 7. Bf4 {[%emt 0:02:30]} Nc6 {[%emt 0:02:07]} 8. Qd2 {[%emt 0:01:10]} Qe7+ {[%emt 0:04:15]} 9. Be2 {[%emt 0:02:03]} Be6 {[%emt 0:00:21]} 10. a3 {[%emt 0:04:13]} O-O-O {[%emt 0:02:51]} 11. O-O-O {[%emt 0:01:55]} h6 {[%emt 0:03:06]} 12. Rhe1 {[%emt 0:06:16]} g5 {[%emt 0:00:34]} 13. Bg3 {[%emt 0:02:41]} Bg7 {[%emt 0:01:06]} 14. Bb5 {[%emt 0:06:59]} Na5 {[%emt 0:13:26]} 15. Qe3 {[%emt 0:09:36]} c5 {[%emt 0:01:15]} 16. Ne5 {[%emt 0:07:48]} a6 {[%emt 0:04:13]} 17. Bf1 {[%emt 0:01:42]} Rhe8 {[%emt 0:02:51]} 18. h4 {[%emt 0:03:44]} Bf5 {[%emt 0:12:23]} 19. Qf3 {[%emt 0:04:57]} Be4 {[%emt 0:01:57]} 20. Qg4+ {[%emt 0:01:17]} f5 {[%emt 0:00:38]} 21. Qh5 {[%emt 0:03:49]} Bxe5 {[%emt 0:00:12]} 22. Bxe5 {[%emt 0:00:37]} Qxe5 {[%emt 0:00:08]} 23. f3 {[%emt 0:01:08]} Qf4+ {[%emt 0:00:37]} 24. Kb1 {[%emt 0:00:18]} Qxh4 {[%emt 0:00:50]} 25. Qxh4 {[%emt 0:00:34]} gxh4 {[%emt 0:00:06]} 26. fxe4 {[%emt 0:00:46]} fxe4 {[%emt 0:00:33]} 27. Be2 {[%emt 0:00:53]} Rg8 {[%emt 0:00:32]} 28. Rg1 {[%emt 0:00:59]} Rg5 {[%emt 0:00:40]} 29. Rd2 {[%emt 0:04:20]} h3 {[%emt 0:03:48]} 30. g3 {[%emt 0:03:03]} h2 {[%emt 0:00:46]} 31. Rh1 {[%emt 0:00:45]} Rxg3 {[%emt 0:00:08]} 32. Rxh2 {[%emt 0:00:14]} Rd6 {[%emt 0:00:52]} 33. Rd1 {[%emt 0:02:10]} d4 {[%emt 0:01:18]} 34. Rh4 {[%emt 0:02:16]} d3 {[%emt 0:06:05]} 35. Rxe4 {[%emt 0:01:58]} dxe2 {[%emt 0:00:18]} 36. Rxd6 {[%emt 0:00:34]} Rg1+ {[%emt 0:00:05]} 37. Ka2 {[%emt 0:00:22]} e1=Q {[%emt 0:00:06]} 38. Rxe1 {[%emt 0:00:06]} Rxe1 {[%emt 0:00:04]} 39. Rxh6 {[%emt 0:00:23]} Rc1 {[%emt 0:01:22]} 40. Rh2 {[%emt 0:00:00]} c4 {[%emt 0:00:00]} 41. a4 {[%emt 0:03:26]} Nc6 {[%emt 0:03:18]} 42. Rh4 {[%emt 0:00:38]} b5 {[%emt 0:01:28]} 43. axb5 {[%emt 0:00:21]} axb5 {[%emt 0:00:04]} 44. Rh5 {[%emt 0:01:17]} Na7 {[%emt 0:00:29]} 45. Rc5+ {[%emt 0:02:09]} Kb7 {[%emt 0:00:17]} 46. Rh5 {[%emt 0:02:36]} Rxc2 {[%emt 0:00:16]} 47. Kb1 {[%emt 0:00:47]} Re2 {[%emt 0:00:12]} 48. Rh7+ {[%emt 0:00:21]} Kb6 {[%emt 0:00:06]} 49. Rh6+ {[%emt 0:00:21]} Ka5 {[%emt 0:00:06]} 50. Rh7 {[%emt 0:00:49]} Nc6 {[%emt 0:00:07]} 51. Rh8 {[%emt 0:00:24]} Ne5 {[%emt 0:00:26]} 52. Re8 {[%emt 0:01:26]} Re1+ {[%emt 0:00:32]} 53. Kc2 {[%emt 0:00:30]} Nd3 {[%emt 0:00:15]} 54. Rd8 {[%emt 0:01:23]} Re2+ {[%emt 0:00:06]} 55. Kb1 {[%emt 0:00:48]} Rxb2+ {[%emt 0:00:07]} 56. Ka1 {[%emt 0:00:07]} Rb3 {[%emt 0:00:09]} 57. Ka2 {[%emt 0:00:39]} Rxc3 {[%emt 0:00:15]} 58. Kb1 {[%emt 0:00:32]} b4 {[%emt 0:00:32]} 59. Rb8 {[%emt 0:02:45]} b3 {[%emt 0:00:07]} 60. Ra8+ {[%emt 0:00:17]} Kb6 {[%emt 0:00:08]} 61. Ra3 {[%emt 0:00:23]} Rc1# {[%emt 0:00:04]} 0-1

[Event "FIDE WCCC G10 2018"]
[Site "Santiago de Compostela"]
[Date "2018.11.13"]
[Round "9"]
[White "Qu, Greta"]
[Black "Da Cunha, Gabriela Goes"]
[Result "1-0"]
[ECO "B12"]
[WhiteElo "1360"]
[BlackElo "1464"]
[Annotator "NA RC"]
[PlyCount "139"]
[EventDate "2018.11.04"]
[EventType "swiss"]
[EventCountry "ESP"]
[SourceTitle "playchess.com"]
[Source "ChessBase"]
[SourceQuality "1"]
[TimeControl "40/5400+30:1800+30"]

1. e4 {[%emt 0:00:00]} c6 {[%emt 0:00:00]} 2. d4 {[%emt 0:00:00]} d5 {[%emt 0:00:00]} 3. e5 {[%emt 0:00:00]} Bf5 {[%emt 0:00:20]} 4. h4 {[%emt 0:00:38]} h5 {[%emt 0:00:09]} 5. Bd3 {[%emt 0:00:03]} Bxd3 {[%emt 0:00:18]} 6. Qxd3 {[%emt 0:00:06]} e6 {[%emt 0:00:25]} 7. Bg5 {[%emt 0:00:12]} Qa5+ {[%emt 0:00:11]} 8. Nc3 {[%emt 0:00:45]} Qa6 {[%emt 0:01:36]} 9. Qd2 {[%emt 0:03:22]} Ne7 {[%emt 0:06:15]} 10. Bxe7 {[%emt 0:03:03]} Bxe7 {[%emt 0:00:14]} 11. f4 {[%emt 0:00:52]} g6 {[%emt 0:11:46]} 12. Nf3 {[%emt 0:00:30]} c5 {[%emt 0:09:03]} 13. dxc5 {[%emt 0:05:29]} Bxc5 {[%emt 0:00:24]} 14. Ng5 {[%emt 0:03:12]} Bb4 {[%emt 0:12:21]} 15. a3 {[%emt 0:02:41]} Nc6 {[%emt 0:05:19]} 16. O-O-O {[%emt 0:02:48]} Bxc3 {[%emt 0:01:44]} 17. Qxc3 {[%emt 0:00:23]} Qa5 {[%emt 0:08:29]} 18. Qxa5 {[%emt 0:13:26]} Nxa5 {[%emt 0:00:12]} 19. Nf3 {[%emt 0:00:31]} Nc4 {[%emt 0:01:30]} 20. Nd4 {[%emt 0:02:31]} a6 {[%emt 0:00:53]} 21. Rhe1 {[%emt 0:01:34]} Ke7 {[%emt 0:03:11]} 22. a4 {[%emt 0:00:51]} Nb6 {[%emt 0:00:45]} 23. b3 {[%emt 0:00:06]} Rac8 {[%emt 0:02:36]} 24. Kb2 {[%emt 0:02:22]} Nd7 {[%emt 0:01:15]} 25. Nf3 {[%emt 0:05:02]} Rc7 {[%emt 0:02:57]} 26. Ng5 {[%emt 0:02:14]} Rhc8 {[%emt 0:01:03]} 27. Re2 {[%emt 0:01:09]} Rc3 {[%emt 0:02:17]} 28. Nf3 {[%emt 0:01:52]} R3c7 {[%emt 0:11:28]} 29. Ng5 {[%emt 0:02:50]} Ra8 {[%emt 0:01:33]} 30. Ra1 {[%emt 0:05:17]} Kf8 {[%emt 0:01:59]} 31. Nf3 {[%emt 0:05:24]} Kg7 {[%emt 0:00:52]} 32. Ng5 {[%emt 0:04:33]} Rac8 {[%emt 0:00:44]} 33. Rae1 {[%emt 0:01:51]} Nb8 {[%emt 0:01:32]} 34. Rd2 {[%emt 0:01:06]} Nc6 {[%emt 0:01:02]} 35. Ree2 {[%emt 0:01:18]} Ne7 {[%emt 0:00:30]} 36. Nf3 {[%emt 0:02:10]} Nf5 {[%emt 0:00:14]} 37. Re1 {[%emt 0:02:07]} Ng3 {[%emt 0:01:50]} 38. Ng5 {[%emt 0:00:57]} Rc3 {[%emt 0:02:06]} 39. Kb1 {[%emt 0:01:44]} Nf5 {[%emt 0:01:28]} 40. Nf3 {[%emt 0:00:00]} Ne7 {[%emt 0:00:00]} 41. Kb2 {[%emt 0:00:30]} Kg8 {[%emt 0:04:35]} 42. Ree2 {[%emt 0:00:10]} Nf5 {[%emt 0:00:37]} 43. Re1 {[%emt 0:00:10]} R3c7 {[%emt 0:00:48]} 44. Kb1 {[%emt 0:00:26]} Ne7 {[%emt 0:00:16]} 45. Nd4 {[%emt 0:00:47]} Nc6 {[%emt 0:00:21]} 46. Nxc6 {[%emt 0:01:00]} Rxc6 {[%emt 0:00:06]} 47. Re3 {[%emt 0:00:46]} Rc3 {[%emt 0:00:26]} 48. Rxc3 {[%emt 0:00:27]} Rxc3 {[%emt 0:00:11]} 49. Rd3 {[%emt 0:00:16]} Rxd3 {[%emt 0:00:55]} 50. cxd3 {[%emt 0:00:04]} a5 {[%emt 0:00:13]} 51. Kc2 {[%emt 0:00:07]} Kf8 {[%emt 0:01:24]} 52. Kc3 {[%emt 0:01:57]} Ke7 {[%emt 0:00:08]} 53. b4 {[%emt 0:00:49]} Kd7 {[%emt 0:02:28]} 54. bxa5 {[%emt 0:00:22]} Kc7 {[%emt 0:00:52]} 55. Kb4 {[%emt 0:02:36]} Kc6 {[%emt 0:01:09]} 56. d4 {[%emt 0:00:07]} Kd7 {[%emt 0:00:25]} 57. Kb5 {[%emt 0:00:14]} Kc7 {[%emt 0:00:13]} 58. Kc5 {[%emt 0:00:25]} Kd7 {[%emt 0:00:08]} 59. Kb6 {[%emt 0:00:04]} Kc8 {[%emt 0:00:10]} 60. a6 {[%emt 0:00:06]} bxa6 {[%emt 0:00:20]} 61. Kxa6 {[%emt 0:00:19]} Kc7 {[%emt 0:00:28]} 62. Kb5 {[%emt 0:00:04]} Kb7 {[%emt 0:00:08]} 63. a5 {[%emt 0:00:03]} Kc7 {[%emt 0:00:09]} 64. a6 {[%emt 0:00:09]} Kb8 {[%emt 0:00:25]} 65. Kb6 {[%emt 0:00:07]} g5 {[%emt 0:00:06]} 66. fxg5 {[%emt 0:00:07]} Ka8 {[%emt 0:00:09]} 67. a7 {[%emt 0:00:23]} f6 {[%emt 0:00:08]} 68. g6 {[%emt 0:00:07]} f5 {[%emt 0:00:05]} 69. g7 {[%emt 0:00:03]} f4 {[%emt 0:01:24]} 70. g8=R# 1-0

[Event "FIDE WCCC G10 2018"]
[Site "Santiago de Compostela"]
[Date "2018.11.13"]
[Round "9"]
[White "Chekhani, Anna"]
[Black "Nguyen, Ha Khanh Linh"]
[Result "0-1"]
[ECO "A01"]
[WhiteElo "1288"]
[BlackElo "1449"]
[Annotator "NA RC"]
[PlyCount "156"]
[EventDate "2018.11.04"]
[EventType "swiss"]
[EventCountry "ESP"]
[SourceTitle "playchess.com"]
[Source "ChessBase"]
[SourceQuality "1"]
[TimeControl "40/5400+30:1800+30"]

1. b3 {[%emt 0:00:00]} Nf6 {[%emt 0:00:32]} 2. Bb2 {[%emt 0:00:02]} e6 {[%emt 0:00:47]} 3. Nf3 {[%emt 0:02:32]} b6 {[%emt 0:02:41]} 4. e3 {[%emt 0:05:50]} Bb7 {[%emt 0:01:01]} 5. Be2 {[%emt 0:01:07]} Be7 {[%emt 0:02:17]} 6. O-O {[%emt 0:00:28]} O-O {[%emt 0:02:13]} 7. c4 {[%emt 0:03:49]} d5 {[%emt 0:02:52]} 8. d4 {[%emt 0:04:46]} Ne4 {[%emt 0:02:15]} 9. Nbd2 {[%emt 0:02:54]} f5 {[%emt 0:02:02]} 10. Ne5 {[%emt 0:12:03]} Nd7 {[%emt 0:04:55]} 11. Nxd7 {[%emt 0:03:58]} Qxd7 {[%emt 0:00:46]} 12. Nf3 {[%emt 0:00:13]} Bd6 {[%emt 0:03:17]} 13. Ne5 {[%emt 0:04:19]} Qe7 {[%emt 0:02:41]} 14. Rc1 {[%emt 0:05:31]} a5 {[%emt 0:03:48]} 15. Qc2 {[%emt 0:11:23]} c6 {[%emt 0:05:08]} 16. f3 {[%emt 0:12:40]} Nf6 {[%emt 0:04:33]} 17. c5 {[%emt 0:00:37]} bxc5 {[%emt 0:01:12]} 18. dxc5 {[%emt 0:00:08]} Bc7 {[%emt 0:05:19]} 19. a3 {[%emt 0:05:13]} Nd7 {[%emt 0:05:25]} 20. Nxd7 {[%emt 0:00:56]} Qxd7 {[%emt 0:00:11]} 21. b4 {[%emt 0:00:57]} Ba6 {[%emt 0:05:21]} 22. Bxa6 {[%emt 0:02:56]} Rxa6 {[%emt 0:00:25]} 23. Qd3 {[%emt 0:00:09]} Raa8 {[%emt 0:12:47]} 24. f4 {[%emt 0:05:28]} Rab8 {[%emt 0:06:09]} 25. Bc3 {[%emt 0:05:19]} Rfe8 {[%emt 0:15:11]} 26. Rf3 {[%emt 0:09:01]} Re7 {[%emt 0:03:19]} 27. Re1 {[%emt 0:00:38]} Ra8 {[%emt 0:01:24]} 28. Rb1 {[%emt 0:00:29]} axb4 {[%emt 0:01:19]} 29. axb4 {[%emt 0:00:13]} Ra3 {[%emt 0:00:22]} 30. Qd2 {[%emt 0:00:25]} e5 {[%emt 0:00:47]} 31. Qb2 {[%emt 0:00:15]} Ra8 {[%emt 0:00:50]} 32. fxe5 Rae8 {[%emt 0:00:45]} 33. Qc2 {[%emt 0:01:35]} Bxe5 {[%emt 0:00:33]} 34. Rb3 {[%emt 0:00:31]} g6 {[%emt 0:00:35]} 35. Bxe5 {[%emt 0:00:31]} Rxe5 {[%emt 0:00:10]} 36. Qd2 {[%emt 0:00:24]} Re4 {[%emt 0:01:06]} 37. Kf2 {[%emt 0:00:34]} Qe7 {[%emt 0:01:04]} 38. Rd3 {[%emt 0:00:30]} Qh4+ {[%emt 0:00:29]} 39. Kg1 {[%emt 0:00:26]} Rxb4 {[%emt 0:00:55]} 40. g3 {[%emt 0:00:00]} Qe4 {[%emt 0:00:00]} 41. Kf2 {[%emt 0:04:27]} Rb5 {[%emt 0:03:09]} 42. Rc3 {[%emt 0:07:04]} Reb8 {[%emt 0:01:58]} 43. Rc2 {[%emt 0:01:38]} Qxc2 {[%emt 0:03:23]} 44. Qxc2 {[%emt 0:00:06]} Rb2 {[%emt 0:00:05]} 45. Qe2 {[%emt 0:03:47]} Rxe2+ {[%emt 0:00:23]} 46. Kxe2 {[%emt 0:00:03]} Rb5 {[%emt 0:01:11]} 47. Kd3 {[%emt 0:00:29]} Rxc5 {[%emt 0:00:07]} 48. Kd4 {[%emt 0:00:07]} Rc2 {[%emt 0:00:17]} 49. h4 {[%emt 0:00:04]} Kf7 {[%emt 0:00:22]} 50. Ke5 {[%emt 0:00:27]} Ke7 {[%emt 0:00:23]} 51. h5 {[%emt 0:00:48]} Rc4 {[%emt 0:00:10]} 52. hxg6 {[%emt 0:00:47]} hxg6 {[%emt 0:00:09]} 53. Rf4 {[%emt 0:01:10]} Re4+ {[%emt 0:01:41]} 54. Rxe4 {[%emt 0:00:13]} dxe4 {[%emt 0:01:11]} 55. Kd4 {[%emt 0:01:45]} Kd6 {[%emt 0:00:20]} 56. Kc4 {[%emt 0:00:48]} c5 {[%emt 0:00:07]} 57. Kc3 {[%emt 0:00:26]} Kd5 {[%emt 0:00:17]} 58. Kb3 {[%emt 0:00:22]} c4+ {[%emt 0:00:16]} 59. Kc3 {[%emt 0:00:04]} Kc5 {[%emt 0:00:08]} 60. Kc2 {[%emt 0:00:17]} Kb4 {[%emt 0:00:18]} 61. Kb2 {[%emt 0:00:05]} c3+ {[%emt 0:00:05]} 62. Kc2 {[%emt 0:00:06]} Kc4 {[%emt 0:00:03]} 63. Kc1 {[%emt 0:00:10]} Kd3 {[%emt 0:00:14]} 64. Kd1 {[%emt 0:00:14]} Kxe3 {[%emt 0:00:04]} 65. Kc2 {[%emt 0:00:05]} Kf2 {[%emt 0:00:06]} 66. Kxc3 {[%emt 0:00:04]} e3 {[%emt 0:00:03]} 67. Kd3 {[%emt 0:00:21]} e2 {[%emt 0:00:10]} 68. Kd4 {[%emt 0:00:02]} e1=Q {[%emt 0:00:08]} 69. Kd5 {[%emt 0:00:02]} Qe4+ {[%emt 0:00:19]} 70. Kd6 {[%emt 0:00:02]} Kxg3 {[%emt 0:00:10]} 71. Kc5 {[%emt 0:00:06]} f4 {[%emt 0:00:07]} 72. Kd6 {[%emt 0:00:03]} f3 {[%emt 0:00:05]} 73. Kc5 {[%emt 0:00:02]} f2 {[%emt 0:00:08]} 74. Kd6 {[%emt 0:00:02]} f1=Q {[%emt 0:00:08]} 75. Kc5 {[%emt 0:00:03]} Qfc4+ {[%emt 0:00:08]} 76. Kd6 {[%emt 0:00:05]} Qcd5+ {[%emt 0:00:09]} 77. Kc7 {[%emt 0:00:06]} Qc6+ {[%emt 0:00:03]} 78. Kb8 {[%emt 0:00:13]} Qb7# {[%emt 0:00:03]} 0-1

[Event "FIDE WCCC G10 2018"]
[Site "Santiago de Compostela"]
[Date "2018.11.13"]
[Round "9"]
[White "Ho, Ngoc Vy"]
[Black "Braeutigam, Katerina"]
[Result "1-0"]
[ECO "A40"]
[WhiteElo "1275"]
[BlackElo "1647"]
[Annotator "NA RC"]
[PlyCount "133"]
[EventDate "2018.11.04"]
[EventType "swiss"]
[EventCountry "ESP"]
[SourceTitle "playchess.com"]
[Source "ChessBase"]
[SourceQuality "1"]
[TimeControl "40/5400+30:1800+30"]

1. d4 {[%emt 0:00:00]} e6 {[%emt 0:00:00]} 2. c4 {[%emt 0:00:11]} b6 {[%emt 0:00:00]} 3. Nf3 {[%emt 0:01:07]} Bb7 {[%emt 0:00:00]} 4. Nc3 {[%emt 0:00:50]} f5 {[%emt 0:00:23]} 5. e3 {[%emt 0:02:39]} Nf6 {[%emt 0:00:24]} 6. Be2 {[%emt 0:01:21]} g6 {[%emt 0:00:25]} 7. O-O {[%emt 0:02:52]} Bg7 {[%emt 0:00:14]} 8. Ne5 {[%emt 0:01:56]} O-O {[%emt 0:00:20]} 9. Bf3 {[%emt 0:00:16]} Qc8 {[%emt 0:16:26]} 10. d5 {[%emt 0:06:09]} Na6 {[%emt 0:07:26]} 11. dxe6 {[%emt 0:05:02]} dxe6 {[%emt 0:00:15]} 12. Nc6 {[%emt 0:00:14]} Kh8 {[%emt 0:05:18]} 13. Nb5 {[%emt 0:05:07]} Qe8 {[%emt 0:08:04]} 14. Nbd4 {[%emt 0:10:44]} e5 {[%emt 0:00:54]} 15. Nxe5 {[%emt 0:00:55]} Ne4 {[%emt 0:06:48]} 16. Nd3 {[%emt 0:03:15]} Rd8 {[%emt 0:01:55]} 17. Nf4 {[%emt 0:01:26]} Rd6 {[%emt 0:07:15]} 18. Qc2 {[%emt 0:07:51]} Nb4 {[%emt 0:10:24]} 19. Qb3 {[%emt 0:02:06]} a5 {[%emt 0:02:27]} 20. a3 {[%emt 0:03:55]} Nc5 {[%emt 0:02:25]} 21. Qc3 {[%emt 0:03:07]} Nc6 {[%emt 0:04:35]} 22. b4 {[%emt 0:02:33]} Nxd4 {[%emt 0:00:58]} 23. exd4 {[%emt 0:01:37]} Bxd4 {[%emt 0:01:54]} 24. Qc2 {[%emt 0:00:15]} Bxf3 {[%emt 0:07:24]} 25. bxc5 {[%emt 0:01:00]} Be4 {[%emt 0:00:51]} 26. Qb3 {[%emt 0:01:13]} Bxc5 {[%emt 0:00:43]} 27. Bb2+ {[%emt 0:00:29]} Bd4 {[%emt 0:02:45]} 28. Bxd4+ {[%emt 0:00:35]} Rxd4 {[%emt 0:00:10]} 29. Qc3 {[%emt 0:00:18]} Qe5 {[%emt 0:01:39]} 30. Ne2 {[%emt 0:02:53]} c5 {[%emt 0:02:59]} 31. Nxd4 {[%emt 0:01:39]} cxd4 {[%emt 0:00:22]} 32. Qb2 {[%emt 0:00:16]} Qf6 {[%emt 0:02:54]} 33. Rfd1 {[%emt 0:01:59]} Rd8 {[%emt 0:01:11]} 34. f3 {[%emt 0:02:08]} Bb7 {[%emt 0:03:05]} 35. Rd2 {[%emt 0:00:12]} Ba6 {[%emt 0:00:28]} 36. Rad1 {[%emt 0:00:40]} Bxc4 {[%emt 0:01:09]} 37. Rxd4 {[%emt 0:00:09]} Rd6 {[%emt 0:01:52]} 38. Qc3 {[%emt 0:00:30]} Bg8 {[%emt 0:00:42]} 39. Qa1 {[%emt 0:00:36]} Rxd4 {[%emt 0:00:29]} 40. Qxd4 {[%emt 0:00:00]} Qxd4+ {[%emt 0:00:00]} 41. Rxd4 {[%emt 0:00:18]} b5 {[%emt 0:02:06]} 42. Kf2 {[%emt 0:00:23]} Kg7 {[%emt 0:00:45]} 43. Ke3 {[%emt 0:00:04]} Kf6 {[%emt 0:00:32]} 44. h4 {[%emt 0:00:29]} Ke5 {[%emt 0:00:51]} 45. Rd8 {[%emt 0:00:35]} Bc4 {[%emt 0:02:47]} 46. f4+ {[%emt 0:00:05]} Kf6 {[%emt 0:04:16]} 47. Kd4 {[%emt 0:00:10]} Ke7 {[%emt 0:03:36]} 48. Ra8 {[%emt 0:00:08]} a4 {[%emt 0:02:37]} 49. Ra7+ {[%emt 0:00:05]} Kd6 {[%emt 0:01:55]} 50. Rxh7 {[%emt 0:00:09]} Ke6 {[%emt 0:00:28]} 51. Rh6 {[%emt 0:00:11]} Kf6 {[%emt 0:00:22]} 52. h5 {[%emt 0:00:03]} Bf7 {[%emt 0:01:50]} 53. hxg6 {[%emt 0:00:07]} Bxg6 {[%emt 0:00:17]} 54. Kc5 {[%emt 0:00:03]} Kg7 {[%emt 0:00:44]} 55. Rxg6+ {[%emt 0:00:18]} Kxg6 {[%emt 0:00:09]} 56. Kxb5 {[%emt 0:00:04]} Kh5 {[%emt 0:00:44]} 57. Kxa4 {[%emt 0:00:04]} Kg4 {[%emt 0:00:09]} 58. Kb5 {[%emt 0:01:13]} Kxf4 {[%emt 0:00:21]} 59. a4 {[%emt 0:00:08]} Kg3 {[%emt 0:04:14]} 60. a5 {[%emt 0:00:04]} f4 {[%emt 0:00:13]} 61. a6 {[%emt 0:00:10]} Kxg2 {[%emt 0:00:10]} 62. a7 {[%emt 0:00:05]} f3 {[%emt 0:00:07]} 63. a8=Q {[%emt 0:00:02]} Kf2 {[%emt 0:00:42]} 64. Kc4 {[%emt 0:00:08]} Ke2 {[%emt 0:00:21]} 65. Qa2+ {[%emt 0:00:04]} Kf1 {[%emt 0:01:11]} 66. Qb1+ {[%emt 0:00:10]} Kg2 {[%emt 0:00:09]} 67. Kd3 {[%emt 0:00:10]} 1-0

[Event "FIDE WCCC G10 2018"]
[Site "Santiago de Compostela"]
[Date "2018.11.13"]
[Round "9"]
[White "Kulish, Glafira"]
[Black "Petrosyan, Ani"]
[Result "1-0"]
[ECO "A11"]
[WhiteElo "1153"]
[BlackElo "1442"]
[Annotator "NA RC"]
[PlyCount "79"]
[EventDate "2018.11.04"]
[EventType "swiss"]
[EventCountry "ESP"]
[SourceTitle "playchess.com"]
[Source "ChessBase"]
[SourceQuality "1"]
[TimeControl "40/5400+30:1800+30"]

1. c4 {[%emt 0:00:00]} c6 {[%emt 0:00:05]} 2. Nc3 {[%emt 0:00:00]} d5 {[%emt 0:02:07]} 3. cxd5 {[%emt 0:00:27]} cxd5 {[%emt 0:00:11]} 4. d4 {[%emt 0:00:11]} Nf6 {[%emt 0:00:36]} 5. Bf4 {[%emt 0:00:59]} Bd7 {[%emt 0:01:28]} 6. e3 {[%emt 0:01:28]} e6 {[%emt 0:01:06]} 7. Bd3 {[%emt 0:03:09]} Nc6 {[%emt 0:04:27]} 8. a3 {[%emt 0:06:16]} a6 {[%emt 0:03:27]} 9. Nf3 {[%emt 0:02:24]} Be7 {[%emt 0:00:52]} 10. O-O {[%emt 0:02:21]} O-O {[%emt 0:00:14]} 11. Ne5 {[%emt 0:02:38]} Rc8 {[%emt 0:06:04]} 12. Qf3 {[%emt 0:06:44]} Re8 {[%emt 0:07:08]} 13. Qh3 {[%emt 0:05:03]} Bf8 {[%emt 0:07:01]} 14. Bg5 {[%emt 0:05:45]} h6 {[%emt 0:09:04]} 15. Bxf6 {[%emt 0:02:34]} gxf6 {[%emt 0:00:34]} 16. Ng4 {[%emt 0:01:47]} Bg7 {[%emt 0:04:08]} 17. Nxh6+ {[%emt 0:02:53]} Kf8 {[%emt 0:00:49]} 18. f4 {[%emt 0:26:52]} f5 {[%emt 0:03:51]} 19. g4 {[%emt 0:05:09]} fxg4 {[%emt 0:02:10]} 20. Nxg4 {[%emt 0:00:43]} Ke7 {[%emt 0:01:10]} 21. f5 {[%emt 0:12:44]} Rh8 {[%emt 0:03:29]} 22. f6+ {[%emt 0:03:33]} Bxf6 {[%emt 0:02:15]} 23. Qf3 {[%emt 0:00:18]} Bg5 {[%emt 0:02:32]} 24. Qxf7+ {[%emt 0:00:34]} Kd6 {[%emt 0:00:18]} 25. e4 {[%emt 0:01:41]} Nxd4 {[%emt 0:18:18]} 26. exd5 {[%emt 0:03:21]} Kc7 {[%emt 0:03:09]} 27. dxe6 {[%emt 0:01:52]} Nxe6 {[%emt 0:00:13]} 28. Rae1 {[%emt 0:00:39]} Rf8 {[%emt 0:00:29]} 29. Qh7 {[%emt 0:00:55]} Kb8 {[%emt 0:00:42]} 30. Qe4 {[%emt 0:01:21]} Bd2 {[%emt 0:00:36]} 31. Qe5+ {[%emt 0:00:33]} Ka8 {[%emt 0:00:11]} 32. Rd1 {[%emt 0:00:16]} Bf4 {[%emt 0:01:20]} 33. Qe4 {[%emt 0:00:39]} Nc5 {[%emt 0:00:37]} 34. Qg2 {[%emt 0:00:39]} Bxg4 {[%emt 0:00:44]} 35. Qxg4 {[%emt 0:00:27]} Be3+ {[%emt 0:00:52]} 36. Kh1 {[%emt 0:00:23]} Nxd3 {[%emt 0:00:40]} 37. Qe2 {[%emt 0:00:40]} Nf2+ {[%emt 0:00:40]} 38. Rxf2 {[%emt 0:00:26]} Qb6 {[%emt 0:03:05]} 39. Rxf8 {[%emt 0:00:32]} Rxf8 {[%emt 0:01:46]} 40. Nd5 {[%emt 0:00:00]} 1-0